fUST/lending_fUST_20240801
["ID","MTS","AMOUNT","RATE_DAILY","PERIOD"]
[333749463,1722443448263,-500.0,0.00014246,2]
[333749464,1722443448273,-1469.19,0.00014246,2]
[333749465,1722443448282,-500.0,0.00014246,2]
[333749466,1722443448291,-500.0,0.00014246,2]
[333749467,1722443448301,-561.54187353,0.00014246,2]
[333749468,1722443448311,-500.0,0.00014246,2]
[333749469,1722443448320,-2326.8560727,0.00014246,2]
[333749470,1722443448377,-24.4314217,0.00014246,2]
[333749472,1722443515547,187.88389771,9.999e-05,2]
[333749473,1722443516905,890.04294861,9.999e-05,2]
[333749474,1722443521814,250.0,9.999e-05,2]
[333749479,1722443534816,780.55336014,9.999e-05,2]
[333749480,1722443592359,1182.419613,0.000145,30]
[333749481,1722443622792,520.36890676,9.999e-05,2]
[333749482,1722443633806,520.36890676,9.999e-05,2]
[333749489,1722443663093,386.77258205,9.999e-05,2]
[333749490,1722443784800,225.92683369,9.999e-05,2]
[333749491,1722443791537,693.90397111,9.999e-05,2]
[333749492,1722443800801,225.92683369,9.999e-05,2]
[333749493,1722443886066,693.90397111,9.999e-05,2]
[333749494,1722443942804,225.92683369,9.999e-05,2]
[333749495,1722443950804,225.92683369,9.999e-05,2]
[333749496,1722443976064,693.90397111,9.999e-05,2]
[333749500,1722444038120,154.80856839,9.999e-05,2]
[333749501,1722444067066,693.90397111,9.999e-05,2]
[333749502,1722444075809,225.92683369,9.999e-05,2]
[333749503,1722444094963,225.92683369,9.999e-05,2]
[333749504,1722444154100,693.90397111,9.999e-05,2]
[333749505,1722444165738,166.76167287,9.999e-05,2]
[333749506,1722444218023,225.92683369,9.999e-05,2]
[333749507,1722444251603,693.90397111,9.999e-05,2]
[333749512,1722444339830,225.92683369,9.999e-05,2]
[333749513,1722444342120,693.90397111,9.999e-05,2]
[333749516,1722444350829,225.92683369,9.999e-05,2]
[333749518,1722444434814,693.90397111,9.999e-05,2]
[333749519,1722444464518,225.92683369,9.999e-05,2]
[333749520,1722444502414,521.86930577,9.999e-05,2]
[333749521,1722444507169,693.90397111,9.999e-05,2]
[333749522,1722444537944,848.53287184,9.999e-05,2]
[333749527,1722444578371,255.8480458,9.999e-05,2]
[333749528,1722444580154,208.79805503,9.999e-05,2]
[333749529,1722444582594,693.90397111,9.999e-05,2]
[333749548,1722444632178,-300.0,0.00010823,2]
[333749549,1722444632188,-232.0,0.00010823,2]
[333749550,1722444632198,-549.46613896,0.00010824,2]
[333749551,1722444632210,-4337.21955596,0.00010824,2]
[333749552,1722444632222,-3331.9681964,0.00010824,2]
[333749553,1722444632234,-1492.02183617,0.00010824,2]
[333749603,1722444638005,-6947.23911725,0.00010824,2]
[333749619,1722444638192,-8242.08515526,0.00010824,2]
[333749620,1722444638201,-163.077255,0.00010959,2]
[333749621,1722444638212,-391.6969241,0.00010959,2]
[333749622,1722444638221,-163.077255,0.00011215,2]
[333749623,1722444638230,-163.077255,0.00011472,2]
[333749624,1722444638240,-250.0,0.00011616,2]
[333749625,1722444638249,-250.0,0.00011648,2]
[333749626,1722444638259,-250.0,0.0001168,2]
[333749627,1722444638268,-250.0,0.00011711,2]
[333749628,1722444638277,-163.077255,0.00011728,2]
[333749629,1722444638286,-250.0,0.00011743,2]
[333749630,1722444638296,-250.0,0.00011775,2]
[333749631,1722444638305,-250.0,0.00011807,2]
[333749632,1722444638314,-250.0,0.00011839,2]
[333749633,1722444638323,-250.0,0.00011871,2]
[333749634,1722444638332,-250.0,0.00011903,2]
[333749635,1722444638342,-420.0,0.00011905,2]
[333749636,1722444638351,-250.0,0.00011935,2]
[333749637,1722444638367,-250.0,0.00011966,2]
[333749638,1722444638383,-163.077255,0.00011985,2]
[333749639,1722444638397,-250.0,0.00011998,2]
[333749640,1722444638409,-250.0,0.0001203,2]
[333749641,1722444638427,-250.0,0.00012062,2]
[333749642,1722444638440,-250.0,0.00012094,2]
[333749643,1722444638455,-1629.26928721,0.0001212,2]
[333749644,1722444638470,-162.84721699,0.0001212,2]
[333749645,1722444638484,-693.90397111,0.0001212,2]
[333749646,1722444638499,-250.0,0.00012126,2]
[333749647,1722444638515,-250.0,0.00012158,2]
[333749648,1722444638531,-250.0,0.00012189,2]
[333749649,1722444638543,-250.0,0.00012221,2]
[333749650,1722444638557,-163.077255,0.00012241,2]
[333749651,1722444638570,-159.028779,0.00012986,2]
[333749652,1722444638583,-1000.0,0.00013,6]
[333749653,1722444638594,-587.0,0.00013095,2]
[333749654,1722444638607,-2394.42563308,0.00013597,2]
[333749655,1722444638620,-2267.5932758,0.00013597,2]
[333749668,1722444640370,-126.83235726,0.00013597,2]
[333749669,1722444640379,-428.35344984,0.00013598,2]
[333749670,1722444640391,-1966.07218322,0.00013598,2]
[333749671,1722444640400,-2394.42563306,0.00013598,2]
[333749672,1722444640411,-2394.42563306,0.00013598,2]
[333749673,1722444640424,-180.25067529,0.00013688,5]
[333749674,1722444640434,-70121.8573392,0.00013688,2]
[333749675,1722444640447,-2303.93030489,0.00013688,2]
[333749678,1722444643191,-21348.27454316,0.00013688,2]
[333749679,1722444643203,-441.29998889,0.00013688,2]
[333749680,1722444643246,-1196.88,0.00013688,2]
[333749681,1722444643305,-4197.90370786,0.00013688,2]
[333749683,1722444643315,-500.0,0.00013697,2]
[333749685,1722444643325,-500.0,0.00013697,2]
[333749687,1722444643334,-500.0,0.00013697,2]
[333749688,1722444643344,-500.0,0.00013697,2]
[333749689,1722444643353,-2274.67599067,0.00013698,5]
[333749690,1722444643365,-997.14542297,0.00013698,5]
[333749730,1722444646168,-675.5,0.00013698,5]
[333749731,1722444646227,-20372.80000002,0.00013698,5]
[333749732,1722444646239,-7127.93004024,0.00013698,5]
[333749734,1722444712931,250.0,9.999e-05,2]
[333749735,1722444714597,693.90397111,9.999e-05,2]
[333749740,1722444800606,693.90397111,9.999e-05,2]
[333749760,1722444896618,693.90397111,9.999e-05,2]
[333749784,1722444987619,693.90397111,9.999e-05,2]
[333749785,1722444989377,-300.0,0.00010958,2]
[333749786,1722444989401,-300.0,0.00010958,2]
[333749787,1722444989423,-304.47,0.00010959,2]
[333749788,1722444989445,-1895.69,0.00010959,2]
[333749789,1722444989469,-1579.74,0.00010959,2]
[333749790,1722444989491,-1316.45,0.00010959,2]
[333749791,1722444989517,-1097.04,0.00010959,2]
[333749792,1722444989540,-914.2,0.00010959,2]
[333749793,1722444989563,-761.84,0.00010959,2]
[333749794,1722444989586,-634.86,0.00010959,2]
[333749795,1722444989608,-529.05,0.00010959,2]
[333749796,1722444989630,-440.88,0.00010959,2]
[333749797,1722444989656,-367.4,0.00010959,2]
[333749798,1722444989678,-306.16,0.00010959,2]
[333749799,1722444989701,-255.14,0.00010959,2]
[333749800,1722444989725,-212.61,0.00010959,2]
[333749817,1722445075126,470.41578841,9.999e-05,2]
[333749846,1722445353704,155.36988972,9.999e-05,2]
[333749851,1722445398448,340.96910741,9.999e-05,2]
[333749853,1722445407802,1772.94437021,9.999e-05,2]
[333749854,1722445434011,403.4655861,9.999e-05,2]
[333749857,1722445457331,195.85959936,9.999e-05,2]
[333749861,1722445493469,154.78708112,9.999e-05,2]
[333749862,1722445502155,693.82835759,9.999e-05,2]
[333749877,1722445571161,693.82835759,9.999e-05,2]
[333749881,1722445612740,154.76012181,9.999e-05,2]
[333749882,1722445643522,413.48920953,9.999e-05,2]
[333749883,1722445655168,693.82835759,9.999e-05,2]
[333749889,1722445749171,358.23383531,9.999e-05,2]
[333749922,1722445832386,-300.0,0.00010436,2]
[333749924,1722445832396,-300.0,0.00010436,2]
[333749926,1722445832406,-8754.23071462,0.00010437,2]
[333749928,1722445832418,-1455.41536084,0.00010437,2]
[333749931,1722445832430,-2000.0,0.00010437,2]
[333749934,1722445832449,-1716.52419962,0.00010437,2]
[333749953,1722445838189,-1518.34020742,0.00010437,2]
[333749954,1722445838202,-254.05169593,0.00010437,2]
[333749955,1722445838213,-9201.43782157,0.00010437,2]
[333749956,1722445838224,-166.666666,0.00010959,2]
[333749957,1722445838236,-546.81,0.00010959,2]
[333749958,1722445838245,-684.04,0.00010959,2]
[333749959,1722445838255,-570.03,0.00010959,2]
[333749961,1722445838265,-475.02,0.00010959,2]
[333749963,1722445838275,-475.02,0.00010959,2]
[333749965,1722445838285,-316.68,0.00010959,2]
[333749967,1722445838294,-1629.61029194,0.00010959,2]
[333749970,1722445838303,-1239.3918966,0.00010959,2]
[333749973,1722445838313,-250.0,0.00011202,2]
[333749976,1722445838323,-166.666666,0.00011215,2]
[333749978,1722445838332,-250.0,0.00011233,2]
[333749980,1722445838341,-250.0,0.00011263,2]
[333749982,1722445838350,-250.0,0.00011294,2]
[333749984,1722445838359,-250.0,0.00011325,2]
[333749985,1722445838369,-250.0,0.00011356,2]
[333749986,1722445838378,-250.0,0.00011386,2]
[333749987,1722445838388,-250.0,0.00011417,2]
[333749988,1722445838397,-250.0,0.00011448,2]
[333749989,1722445838406,-166.666666,0.00011472,2]
[333749990,1722445838415,-420.0,0.00011474,2]
[333749991,1722445838425,-250.0,0.00011478,2]
[333749992,1722445838435,-420.0,0.00011479,2]
[333749993,1722445838444,-250.0,0.00011509,2]
[333749994,1722445838454,-250.0,0.0001154,2]
[333749995,1722445838464,-250.0,0.00011571,2]
[333749996,1722445838474,-250.0,0.00011601,2]
[333749997,1722445838486,-250.0,0.00011632,2]
[333749998,1722445838495,-250.0,0.00011663,2]
[333749999,1722445838505,-250.0,0.00011693,2]
[333750000,1722445838514,-250.0,0.00011724,2]
[333750001,1722445838524,-166.666666,0.00011728,2]
[333750002,1722445838535,-250.0,0.00011755,2]
[333750003,1722445838544,-250.0,0.00011785,2]
[333750004,1722445838554,-166.666666,0.00011985,2]
[333750006,1722445838565,-154.68290005,0.00012119,2]
[333750007,1722445838574,-459.50260569,0.00012119,2]
[333750009,1722445838585,-166.666666,0.00012241,2]
[333750011,1722445838594,-587.0,0.00012627,2]
[333750012,1722445838606,-165.857316,0.00012986,2]
[333750013,1722445838617,-1602.3063734,0.00013597,2]
[333750014,1722445838628,-1602.30637338,0.00013597,2]
[333750015,1722445838638,-1602.30637338,0.00013598,2]
[333750016,1722445838647,-1602.30637338,0.00013598,2]
[333750018,1722445838658,-939.15707045,0.00013598,2]
[333750019,1722445838667,-1602.30637338,0.00013598,2]
[333750020,1722445838677,-8505.19983199,0.000136,2]
[333750042,1722445840538,-1947.72662141,0.000136,2]
[333750043,1722445840552,-2291.60556789,0.00013685,2]
[333750044,1722445840567,-500.0,0.00013687,2]
[333750045,1722445840579,-500.0,0.00013687,2]
[333750046,1722445840592,-12834.4961519,0.00013688,2]
[333750047,1722445840605,-58983.20312263,0.00013688,2]
[333750048,1722445840622,-2040.8022408,0.00013688,2]
[333750049,1722445840638,-20422.77486817,0.00013688,2]
[333750050,1722445840663,-1206.224466,0.00013688,2]
[333750051,1722445840679,-21166.45515542,0.00013688,2]
[333750073,1722445843279,-11691.00551398,0.00013688,2]
[333750075,1722445843292,-500.0,0.00013697,2]
[333750077,1722445843305,-500.0,0.00013697,2]
[333750078,1722445843318,-500.0,0.00013697,2]
[333750079,1722445843331,-500.0,0.00013697,2]
[333750080,1722445843343,-500.0,0.00013697,2]
[333750082,1722445843355,-500.0,0.00013697,2]
[333750084,1722445843367,-500.0,0.00013697,2]
[333750085,1722445843379,-500.0,0.00013697,2]
[333750086,1722445843391,-500.0,0.00013697,2]
[333750087,1722445843404,-500.0,0.00013697,2]
[333750088,1722445843417,-500.0,0.00013697,2]
[333750089,1722445843429,-500.0,0.00013697,2]
[333750090,1722445843442,-500.0,0.00013697,2]
[333750091,1722445843454,-180.25067529,0.00013698,5]
[333750092,1722445843466,-2283.18733468,0.00013698,5]
[333750093,1722445843481,-4106.04119795,0.00013698,5]
[333750094,1722445843496,-654.55399158,0.00013698,5]
[333750095,1722445843512,-45629.32717396,0.00013698,5]
[333750096,1722445843524,-500.0,0.00013698,2]
[333750097,1722445843536,-500.0,0.00013698,2]
[333750098,1722445843549,-446.65298212,0.00013698,2]
[333750099,1722445843561,-500.0,0.00013698,2]
[333750100,1722445843573,-500.0,0.00013698,2]
[333750101,1722445843585,-500.0,0.00013698,2]
[333750102,1722445843597,-500.0,0.00013698,2]
[333750103,1722445843610,-500.0,0.00013698,2]
[333750104,1722445843622,-370.98856717,0.00013698,2]
[333750105,1722445843634,-500.0,0.00013698,2]
[333750106,1722445843646,-226.83786871,0.00013698,2]
[333750107,1722445843658,-500.0,0.00013698,2]
[333750108,1722445843670,-500.0,0.00013698,2]
[333750109,1722445843682,-491.88756416,0.00013698,2]
[333750110,1722445843694,-500.0,0.00013698,2]
[333750111,1722445843707,-500.0,0.00013698,2]
[333750112,1722445843719,-500.0,0.00013698,2]
[333750113,1722445843731,-610.02811124,0.00013698,2]
[333750114,1722445843743,-500.0,0.00013698,2]
[333750115,1722445843756,-500.0,0.00013698,2]
[333750116,1722445843770,-7968.33486527,0.00013698,2]
[333750117,1722445843785,-151.0,0.00013698,2]
[333750118,1722445843796,-151.0,0.00013698,2]
[333750119,1722445843809,-456.32261951,0.00013698,2]
[333750120,1722445843823,-508.5816393,0.00013698,2]
[333750121,1722445843835,-500.0,0.00013698,2]
[333750122,1722445843848,-500.0,0.00013698,2]
[333750123,1722445843862,-500.0,0.00013698,2]
[333750124,1722445843875,-500.0,0.00013698,2]
[333750125,1722445843888,-500.0,0.00013698,2]
[333750126,1722445843900,-500.0,0.00013698,2]
[333750127,1722445843911,-500.0,0.00013698,2]
[333750128,1722445843921,-500.0,0.00013698,2]
[333750129,1722445843931,-500.0,0.00013698,2]
[333750130,1722445844084,-500.0,0.00013698,2]
[333750131,1722445844102,-500.0,0.00013698,2]
[333750132,1722445844111,-500.0,0.00013698,2]
[333750133,1722445844121,-500.0,0.00013698,2]
[333750134,1722445844130,-500.0,0.00013698,2]
[333750135,1722445844139,-500.0,0.00013698,2]
[333750136,1722445844149,-500.0,0.00013698,2]
[333750137,1722445844158,-500.0,0.00013698,2]
[333750138,1722445844168,-500.0,0.00013698,2]
[333750139,1722445844177,-500.0,0.00013698,2]
[333750140,1722445844187,-500.0,0.00013698,2]
[333750141,1722445844197,-500.0,0.00013698,2]
[333750142,1722445844206,-500.0,0.00013698,2]
[333750143,1722445844216,-500.0,0.00013698,2]
[333750144,1722445844227,-500.0,0.00013698,2]
[333750145,1722445844237,-500.0,0.00013698,2]
[333750146,1722445844247,-500.0,0.00013698,2]
[333750147,1722445844257,-500.0,0.00013698,2]
[333750148,1722445844266,-500.0,0.00013698,2]
[333750149,1722445844276,-500.0,0.00013698,2]
[333750150,1722445844286,-185.314197,0.00013698,2]
[333750151,1722445844295,-500.0,0.00013698,2]
[333750152,1722445844304,-1293.31,0.00013698,2]
[333750153,1722445844314,-500.0,0.00013698,2]
[333750154,1722445844323,-500.0,0.00013698,2]
[333750155,1722445844332,-500.0,0.00013698,2]
[333750156,1722445844342,-500.0,0.00013698,2]
[333750157,1722445844352,-500.0,0.00013698,2]
[333750158,1722445844362,-500.0,0.00013698,2]
[333750159,1722445844371,-706.79,0.00013698,2]
[333750160,1722445844381,-503.13608892,0.00013698,2]
[333750161,1722445844391,-500.0,0.00013698,2]
[333750162,1722445844400,-326.59451407,0.00013698,2]
[333750163,1722445844410,-500.0,0.00013698,2]
[333750164,1722445844419,-500.0,0.00013698,2]
[333750165,1722445844432,-500.0,0.00013698,2]
[333750166,1722445844441,-500.0,0.00013698,2]
[333750167,1722445844451,-500.0,0.00013698,2]
[333750168,1722445844460,-287.85659771,0.00013698,2]
[333750169,1722445844470,-151.0,0.00013698,2]
[333750170,1722445844481,-151.0,0.00013698,2]
[333750171,1722445844491,-205.54255952,0.00013698,2]
[333750172,1722445844501,-151.0,0.00013698,2]
[333750173,1722445844510,-151.0,0.00013698,2]
[333750174,1722445844519,-166.310012,0.00013698,2]
[333750175,1722445844528,-560.02860855,0.00013698,2]
[333750176,1722445844538,-500.0,0.00013698,2]
[333750177,1722445844547,-500.0,0.00013698,2]
[333750178,1722445844556,-500.0,0.00013698,2]
[333750179,1722445844565,-151.0,0.00013698,2]
[333750180,1722445844575,-151.0,0.00013698,2]
[333750181,1722445844584,-500.0,0.00013698,2]
[333750182,1722445844593,-500.0,0.00013698,2]
[333750183,1722445844602,-1632.09,0.00013698,2]
[333750184,1722445844611,-500.0,0.00013698,2]
[333750185,1722445844621,-476.37627771,0.00013698,2]
[333750233,1722445846278,-23.62372229,0.00013698,2]
[333750235,1722445846288,-151.0,0.00013698,2]
[333750236,1722445846299,-151.0,0.00013698,2]
[333750237,1722445846309,-346.37627771,0.00013698,2]
[333750285,1722446679992,201.273204,9.999e-05,2]
[333750303,1722446858034,156.44936091,9.999e-05,2]
[333750306,1722446874777,178.64261642,9.999e-05,2]
[333750312,1722446898929,519.24134864,9.999e-05,2]
[333750313,1722446900739,726.04240188,9.999e-05,2]
[333750314,1722446904942,156.52144763,9.999e-05,2]
[333750316,1722446922978,155.96369074,9.999e-05,2]
[333750318,1722446942765,544.26526968,9.999e-05,2]
[333750319,1722446942863,778.87203636,9.999e-05,2]
[333750320,1722446944150,248.83425172,9.999e-05,2]
[333750322,1722446962545,567.99228217,9.999e-05,2]
[333750323,1722446966135,-239.42793266,0.00010958,2]
[333750324,1722446971776,209.79746405,9.999e-05,2]
[333750331,1722446993114,413.56025777,9.999e-05,2]
[333750332,1722447002538,341.75517415,9.999e-05,2]
[333750338,1722447021559,154.72922386,0.0001,2]
[333750360,1722447032439,-172.6373645,0.00010959,2]
[333750361,1722447032448,-263.9,0.00010959,2]
[333750362,1722447032458,-300.0,0.00011135,2]
[333750363,1722447032468,-300.0,0.00011135,2]
[333750364,1722447032477,-5669.78328396,0.00011136,2]
[333750370,1722447038428,-280.86267126,0.00011136,2]
[333750395,1722447038675,-18949.35404478,0.00011136,2]
[333750396,1722447038685,-250.0,0.00011846,2]
[333750397,1722447038695,-250.0,0.00011879,2]
[333750399,1722447038705,-250.0,0.00011911,2]
[333750401,1722447038716,-250.0,0.00011944,2]
[333750403,1722447038726,-250.0,0.00011976,2]
[333750405,1722447038736,-250.0,0.00012009,2]
[333750407,1722447038745,-250.0,0.00012041,2]
[333750409,1722447038756,-250.0,0.00012074,2]
[333750411,1722447038769,-250.0,0.00012106,2]
[333750413,1722447038779,-290.78723984,0.0001212,2]
[333750414,1722447038788,-250.0,0.00012139,2]
[333750416,1722447038798,-250.0,0.00012171,2]
[333750418,1722447038807,-250.0,0.00012204,2]
[333750419,1722447038817,-300.0,0.00012234,2]
[333750420,1722447038826,-250.0,0.00012236,2]
[333750421,1722447038836,-420.0,0.00012248,2]
[333750422,1722447038846,-250.0,0.00012268,2]
[333750423,1722447038857,-250.0,0.00012301,2]
[333750424,1722447038867,-250.0,0.00012333,2]
[333750425,1722447038877,-250.0,0.00012366,2]
[333750426,1722447038887,-250.0,0.00012398,2]
[333750427,1722447038897,-250.0,0.00012431,2]
[333750428,1722447038907,-250.0,0.00012463,2]
[333750429,1722447038917,-165.857316,0.00012986,2]
[333750430,1722447038926,-7968.33486527,0.00013,2]
[333750431,1722447038937,-1263.68560354,0.00013597,2]
[333750432,1722447038946,-1263.6856035,0.00013597,2]
[333750433,1722447038956,-1263.6856035,0.00013598,2]
[333750434,1722447038966,-1263.6856035,0.00013598,2]
[333750435,1722447038976,-845.24136345,0.00013598,2]
[333750436,1722447038985,-1263.6856035,0.00013598,2]
[333750437,1722447038994,-1947.72662048,0.000136,2]
[333750438,1722447039004,-9233.12617118,0.00013686,2]
[333750439,1722447039017,-500.0,0.00013687,2]
[333750440,1722447039027,-10000.0,0.00013688,2]
[333750441,1722447039036,-44016.83369947,0.00013688,2]
[333750442,1722447039049,-334.8845,0.00013688,2]
[333750467,1722447040584,-219.92,0.00010959,2]
[333750468,1722447040594,-55729.61219653,0.00013688,2]
[333750469,1722447040603,-500.0,0.00013697,2]
[333750470,1722447040613,-500.0,0.00013697,2]
[333750471,1722447040623,-636.90559515,0.00013697,2]
[333750472,1722447040632,-19470.59367215,0.00013698,5]
[333750536,1722447043628,-6682.289,0.00013698,5]
[333750537,1722447043642,-183.67217694,0.00013698,5]
[333750538,1722447043653,-151.0,0.00013698,2]
[333750539,1722447043663,-500.0,0.00013698,2]
[333750540,1722447043674,-500.0,0.00013698,2]
[333750541,1722447043684,-501.9513999,0.00013698,2]
[333750542,1722447043693,-500.0,0.00013698,2]
[333750543,1722447043704,-345.2395312,0.00013698,2]
[333750544,1722447043716,-500.0,0.00013698,2]
[333750545,1722447043727,-500.0,0.00013698,2]
[333750546,1722447043738,-500.0,0.00013698,2]
[333750547,1722447043749,-500.0,0.00013698,2]
[333750548,1722447043759,-500.0,0.00013698,2]
[333750549,1722447043771,-747.92,0.00013698,2]
[333750550,1722447043780,-151.0,0.00013698,2]
[333750551,1722447043790,-151.0,0.00013698,2]
[333750552,1722447043801,-500.0,0.00013698,2]
[333750553,1722447043812,-500.0,0.00013698,2]
[333750554,1722447043823,-500.0,0.00013698,2]
[333750555,1722447043834,-500.0,0.00013698,2]
[333750556,1722447043844,-540.94148681,0.00013698,2]
[333750557,1722447043853,-500.0,0.00013698,2]
[333750558,1722447043863,-500.0,0.00013698,2]
[333750559,1722447043872,-500.0,0.00013698,2]
[333750560,1722447043882,-500.0,0.00013698,2]
[333750561,1722447043893,-500.0,0.00013698,2]
[333750562,1722447043904,-500.0,0.00013698,2]
[333750563,1722447043914,-500.0,0.00013698,2]
[333750564,1722447043924,-500.0,0.00013698,2]
[333750565,1722447044025,-500.0,0.00013698,2]
[333750566,1722447044038,-500.0,0.00013698,2]
[333750567,1722447044049,-500.57839379,0.00013698,2]
[333750568,1722447044059,-436.29220357,0.00013698,2]
[333750569,1722447044094,-64.76451501,0.00013698,2]
[333750570,1722447044106,-151.0,0.00013698,2]
[333750571,1722447044119,-151.0,0.00013698,2]
[333750572,1722447044129,-151.0,0.00013698,2]
[333750573,1722447044139,-151.0,0.00013698,2]
[333750574,1722447044152,-500.0,0.00013698,2]
[333750575,1722447044163,-500.0,0.00013698,2]
[333750576,1722447044175,-189.07019114,0.00013698,2]
[333750577,1722447044186,-500.0,0.00013698,2]
[333750578,1722447044197,-500.0,0.00013698,2]
[333750579,1722447044208,-500.0,0.00013698,2]
[333750580,1722447044218,-500.0,0.00013698,2]
[333750581,1722447044230,-500.0,0.00013698,2]
[333750582,1722447044241,-500.0,0.00013698,2]
[333750583,1722447044251,-500.0,0.00013698,2]
[333750584,1722447044262,-500.0,0.00013698,2]
[333750585,1722447044273,-500.0,0.00013698,2]
[333750586,1722447044283,-554.16,0.00013698,2]
[333750587,1722447044293,-1004.16,0.00013698,2]
[333750588,1722447044304,-500.0,0.00013698,2]
[333750589,1722447044314,-500.0,0.00013698,2]
[333750590,1722447044325,-500.0,0.00013698,2]
[333750591,1722447044335,-151.0,0.00013698,2]
[333750592,1722447044345,-500.0,0.00013698,2]
[333750593,1722447044356,-1564.08,0.00013698,2]
[333750594,1722447044367,-500.0,0.00013698,2]
[333750595,1722447044378,-500.0,0.00013698,2]
[333750596,1722447044390,-500.0,0.00013698,2]
[333750597,1722447044401,-201.96529385,0.00013698,2]
[333750598,1722447044417,-298.03470615,0.00013698,2]
[333750599,1722447044429,-500.0,0.00013698,2]
[333750600,1722447044440,-500.0,0.00013698,2]
[333750601,1722447044450,-354.19,0.00013698,2]
[333750602,1722447044460,-500.0,0.00013698,2]
[333750603,1722447044470,-500.0,0.00013698,2]
[333750604,1722447044479,-562.49,0.00013698,2]
[333750605,1722447044490,-500.0,0.00013698,2]
[333750606,1722447044500,-500.0,0.00013698,2]
[333750607,1722447044510,-2043.4,0.00013698,2]
[333750608,1722447044522,-500.0,0.00013698,2]
[333750609,1722447044533,-514.82576949,0.00013698,2]
[333750610,1722447044544,-500.0,0.00013698,2]
[333750611,1722447044553,-119.54218186,0.00013698,2]
[333750638,1722447047457,-380.45781814,0.00013698,2]
[333750640,1722447047467,-500.0,0.00013698,2]
[333750642,1722447047476,-320.51396772,0.00013698,2]
[333750643,1722447047485,-500.0,0.00013698,2]
[333750644,1722447047494,-500.0,0.00013698,2]
[333750645,1722447047503,-508.83107723,0.00013698,2]
[333750646,1722447047513,-500.0,0.00013698,2]
[333750647,1722447047535,-500.0,0.00013698,2]
[333750648,1722447047545,-500.0,0.00013698,2]
[333750649,1722447047554,-500.0,0.00013698,2]
[333750650,1722447047563,-500.0,0.00013698,2]
[333750651,1722447047573,-500.0,0.00013698,2]
[333750652,1722447047584,-500.0,0.00013698,2]
[333750653,1722447047594,-734.54,0.00013698,2]
[333750654,1722447047603,-500.0,0.00013698,2]
[333750655,1722447047613,-500.0,0.00013698,2]
[333750656,1722447047622,-500.0,0.00013698,2]
[333750657,1722447047632,-500.0,0.00013698,2]
[333750658,1722447047641,-500.0,0.00013698,2]
[333750659,1722447047650,-507.24,0.00013698,2]
[333750660,1722447047660,-516.89,0.00013698,2]
[333750661,1722447047669,-500.0,0.00013698,2]
[333750662,1722447047679,-376.64119726,0.00013698,2]
[333750663,1722447047705,-123.35880274,0.00013698,2]
[333750664,1722447047714,-500.0,0.00013698,2]
[333750665,1722447047724,-44.64119726,0.00013698,2]
[333750666,1722447070097,154.76012181,9.999e-05,2]
[333750675,1722447130779,154.72922386,9.999e-05,2]
[333750679,1722447239785,271.13934056,9.999e-05,2]
[333750682,1722447293679,307.9394709,9.999e-05,2]
[333750685,1722447510131,848.67298078,9.999e-05,2]
[333750686,1722447524835,375.64530467,9.999e-05,2]
[333750687,1722447563647,287.62828496,0.0001,2]
[333750688,1722447611902,221.07021107,9.999e-05,2]
[333750689,1722447611936,178.30906711,9.999e-05,2]
[333750690,1722447614159,413.70152675,9.999e-05,2]
[333750691,1722447615580,521.86930577,9.999e-05,2]
[333750692,1722447616542,309.3349299,9.999e-05,2]